Workbook

Sheet Имя1
A1: Имя1
A2: Данные SNM
A3: Контрагент | B3: Договор | C3: Рамка | D3: ДС
A4: 75486749687 | C4: 665ty45 | D4: 563563
A7: Расчет | B7: ККК | C7: Z0056 | E7: Z0156 | G7: Z0256 | I7: Z0356 | K7: Z0556 | M7: Z0656 | O7: Z0756 | Q7: Z1356 | S7: Z1756
A8: Строка | B8: Материал | C8: с НДС | D8: без НДС | E8: с НДС | F8: без НДС | G8: с НДС | H8: без НДС | I8: с НДС | J8: без НДС | K8: с НДС | L8: без НДС | M8: с НДС | N8: без НДС | O8: с НДС | P8: без НДС | Q8: с НДС | R8: без НДС | S8: с НДС | T8: без НДС
A9: 05050501.01 | B9: 30000408 | C9: 900.01 | D9: 762.720339 | O9: 2560.6 | P9: 2170
A10: 05060101.01 | B10: 30000411 | E10: 5190.314286 | F10: 4398.571429 | I10: 2883.507937 | J10: 2443.650794 | O10: 829.5587302 | P10: 703.015873 | Q10: 2883.507937 | R10: 2443.650794 | S10: 4036.911111 | T10: 3421.111111
A11: 05060102.01 | B11: 30000412 | E11: 2254.371 | F11: 1910.483898 | G11: 553.79775 | H11: 469.3201271 | I11: 1476.794 | J11: 1251.520339 | K11: 922.99625 | L11: 782.2002119 | M11: 738.397 | N11: 625.7601695 | Q11: 1476.794 | R11: 1251.520339
A12: ИИИ | C12: 900.01 | E12: 7444.685286 | G12: 553.79775 | I12: 4360.301937 | K12: 922.99625 | M12: 738.397 | O12: 3390.15873 | Q12: 4360.301937 | S12: 4036.911111
A13: Всего без НДС | B13: 22633.52542 | D13: Текущая сумма ДС | F13: 1360280.57
A14: Всего НДС | B14: 4074.034576 | D14: Новая сумма ДС | F14: 1386988.13
A15: Всего с НДС | B15: 26707.56 | D15: Номер распоряжения
A17: Данные SNM | H17: ССС
A18: Контрагент | B18: Договор | C18: Рамка | D18: ДС | H18: 65
A19: 564975649 | C19: 45746 | D19: 3757347 | H19: 149.2
H20: 214.2
B21: Код ТП | C21: Z1056 | E21: Z1356 (42138)
A22: Строка | B22: Материал | C22: с НДС | D22: без НДС | E22: с НДС | F22: без НДС
A23: 05060102.01 | B23: 30000412 | C23: 8958.674 | D23: 7592.09661 | E23: 252.756 | F23: 214.2 | H23: Текущая сумма ДС | J23: 851038.22
A24: Итого | B24: 9211.43 | H24: Новая сумма ДС | J24: 860249.65
A25: Сумма по счету | B25: 9211.43 | H25: Номер распоряжения

Sheet Имя2
A2: Данные SNM
A3: Контрагент | B3: Договор | C3: Рамка | D3: ДС
A4: 75486749687 | C4: 665ty45 | D4: 563563
A7: Расчет | B7: ККК | C7: Z0056 | E7: Z0156 | G7: Z0256 | I7: Z0356 | K7: Z0556 | M7: Z0656 | O7: Z0756 | Q7: Z1356 | S7: Z1756
A8: Строка | B8: Материал | C8: с НДС | D8: без НДС | E8: с НДС | F8: без НДС | G8: с НДС | H8: без НДС | I8: с НДС | J8: без НДС | K8: с НДС | L8: без НДС | M8: с НДС | N8: без НДС | O8: с НДС | P8: без НДС | Q8: с НДС | R8: без НДС | S8: с НДС | T8: без НДС
A9: 05050501.01 | B9: 30000408 | C9: 900.01 | D9: 762.720339 | O9: 2560.6 | P9: 2170
A10: 05060101.01 | B10: 30000411 | E10: 5190.314286 | F10: 4398.571429 | I10: 2883.507937 | J10: 2443.650794 | O10: 829.5587302 | P10: 703.015873 | Q10: 2883.507937 | R10: 2443.650794 | S10: 4036.911111 | T10: 3421.111111
A11: 05060102.01 | B11: 30000412 | E11: 2254.371 | F11: 1910.483898 | G11: 553.79775 | H11: 469.3201271 | I11: 1476.794 | J11: 1251.520339 | K11: 922.99625 | L11: 782.2002119 | M11: 738.397 | N11: 625.7601695 | Q11: 1476.794 | R11: 1251.520339
A12: ИИИ | C12: 900.01 | E12: 7444.685286 | G12: 553.79775 | I12: 4360.301937 | K12: 922.99625 | M12: 738.397 | O12: 3390.15873 | Q12: 4360.301937 | S12: 4036.911111
A13: Всего без НДС | B13: 22633.52542 | D13: Текущая сумма ДС | F13: 1360280.57
A14: Всего НДС | B14: 4074.034576 | D14: Новая сумма ДС | F14: 1386988.13
A15: Всего с НДС | B15: 26707.56 | D15: Номер распоряжения
A17: Данные SNM | H17: ССС
A18: Контрагент | B18: Договор | C18: Рамка | D18: ДС | H18: 65
A19: 49865948 | C19: 355 | D19: 497604 | H19: 149.2
H20: 214.2
B21: Код ТП | C21: Z1056 | E21: Z1356 (42138)
A22: Строка | B22: Материал | C22: с НДС | D22: без НДС | E22: с НДС | F22: без НДС
A23: 05060102.01 | B23: 30000412 | C23: 8958.674 | D23: 7592.09661 | E23: 252.756 | F23: 214.2 | H23: Текущая сумма ДС | J23: 851038.22
A24: Итого | B24: 9211.43 | H24: Новая сумма ДС | J24: 860249.65
A25: Сумма по счету | B25: 9211.43 | H25: Номер распоряжения

Sheet Лист5
B2: Инициатор
B3: Наименование контрагента
B4: Общая сумма на оприходование
B5: Договор
A7: № строки | B7: Товар, работа, услуга | D7: Объем заказа (кол-во) | E7: Единица измерения | F7: Сумма без налога | G7: Сумма НДС | H7: Код ТП | I7: Серийный номер
A9: 1 | B9: Z0056 | F9: 900.01 | G9: 762.720339
A10: 2 | B10: Z0156
A11: 3 | B11: Z0256
A12: 4 | B12: Z0356
A13: 5 | B13: Z0556
A14: 6 | B14: Z0656
A15: 7 | B15: Z0756 | F15: 2560.6 | G15: 2170
A16: 8 | B16: Z1356
A17: 9 | B17: Z1756
A18: 10

Sheet Лист1
A1: 2013-01-01
A2: Данные
A3: Контрагент | B3: Договор | C3: Рамка | D3: ДС
A4: 1000002382 | C4: 10000032796 | D4: 10000033267
A6: Данные по счету | D6: Расчет | E6: Код ТП | F6: Z0056 | H6: Z0156 | J6: Z0256 | L6: Z0356 | N6: Z0556 | P6: Z1456 | R6: Z1756
A7: Внутризон на моб | D7: Строка | E7: Материал | F7: с НДС | G7: без НДС | H7: с НДС | I7: без НДС | J7: с НДС | K7: без НДС | L7: с НДС | M7: без НДС | N7: с НДС | O7: без НДС | P7: с НДС | Q7: без НДС | R7: с НДС | S7: без НДС
A8: Внутризон на фикс | D8: 05050401.01 | E8: 30000406 | F8: =C17*1.18 -> 14419.6 | G8: =F8/1.18 -> 12220 | H8: =C18*1.18 -> 9086 | I8: =H8/1.18 -> 7700 | J8: =C19*1.18 -> 9086 | K8: =J8/1.18 -> 7700 | L8: =C20*1.18 -> 9086 | M8: =L8/1.18 -> 7700 | N8: =C21*1.18 -> 9086 | O8: =N8/1.18 -> 7700 | P8: =C22*1.18 -> 9086 | Q8: =P8/1.18 -> 7700 | R8: =C23*1.18 -> 9086 | S8: =R8/1.18 -> 7700
A9: OFF-Net - междугор | C9: 529.59 | D9: 05050402.01 | E9: 30000407 | F9: =(C12+C13)*1.18 -> 23163.4 | G9: =F9/1.18 -> 19630
A10: DD межгород | D10: 05050501.01 | E10: 30000408 | F10: =(C15+C16)*1.18 -> 159.3 | G10: 135
A11: DD междунар | D11: 05060102.01 | E11: 30000412 | F11: =(C7+C8+C9+C10+C11+C14)*1.18 -> 1739.5206 | G11: 1474.17
A12: Соедин.линия | C12: 7200 | D12: Текущая сумма ДС | F12: 4382827.66 | H12: Итого НДС | J12: =F8-G8+H8-I8+J8-K8+L8-M8+N8-O8+P8-Q8+R8-S8+F9-G9+F10-G10+F11-G11 -> 14338.6506
A13: Точка-точка | C13: 12430 | D13: Новая сумма ДС | F13: =SUM(F12,J13) -> 4476825.481 | H13: Итого | J13: =C24+J12 -> 93997.8206
A14: Надбавка | C14: 944.58 | D14: Номер распоряжения | H14: Корректировка
A15: xDSL доступ | C15: 135
A16: Входящий трафик
A17: VP-LAN ID:1284138 | C17: 12220
A18: VP-LAN ID:1284139 | C18: 7700
A19: VP-LAN ID:1284161 | C19: 7700
A20: VP-LAN ID:1362030 | C20: 7700
A21: VP-LAN ID:1362032 | C21: 7700
A22: VP-LAN ID:1362033 | C22: 7700
A23: VP-LAN ID:1502598 | C23: 7700
A24: Итого без НДС | C24: =SUM(C7:C23) -> 79659.17
A26: Данные SAP
A27: Контрагент | B27: Договор | C27: Рамка | D27: ДС
A28: 1000002382 | C28: 10000032588 | D28: 10000033407
A29: Данные по счету | D29: Расчет | E29: Код ТП | F29: Z0056
A30: Услуги связи | C30: 346.72 | D30: Строка | E30: Материал | F30: с НДС | G30: без НДС
A31: НДС | C31: =C30*0.18 -> 62.4096 | D31: 05050501.01 | E31: 30000408 | F31: =C32 -> 409.1296 | G31: =C30 -> 346.72
A32: Всего | C32: =SUM(C30:C31) -> 409.1296 | D32: Текущая сумма ДС | F32: 11539.63
D33: Новая сумма ДС | F33: =F32+C32 -> 11948.7596
D34: Номер распоряжения
A35: 2013-02-01
A37: Контрагент | B37: Договор | C37: Рамка | D37: ДС
A38: 1000002382 | C38: 10000032796 | D38: 10000033267
A40: Данные по счету | D40: Расчет | E40: Код ТП | F40: Z0056 | H40: Z0156 | J40: Z0256 | L40: Z0356 | N40: Z0556 | P40: Z1456 | R40: Z1756
A41: Внутризон на моб | D41: Строка | E41: Материал | F41: с НДС | G41: без НДС | H41: с НДС | I41: без НДС | J41: с НДС | K41: без НДС | L41: с НДС | M41: без НДС | N41: с НДС | O41: без НДС | P41: с НДС | Q41: без НДС | R41: с НДС | S41: без НДС
A42: Внутризон на фикс | D42: 05050401.01 | E42: 30000406 | F42: =C51*1.18 -> 14419.6 | G42: =F42/1.18 -> 12220 | H42: =C52*1.18 -> 9086 | I42: =H42/1.18 -> 7700 | J42: =C53*1.18 -> 9086 | K42: =J42/1.18 -> 7700 | L42: =C54*1.18 -> 9086 | M42: =L42/1.18 -> 7700 | N42: =C55*1.18 -> 9086 | O42: =N42/1.18 -> 7700 | P42: =C56*1.18 -> 9086 | Q42: =P42/1.18 -> 7700 | R42: =C57*1.18 -> 9086 | S42: =R42/1.18 -> 7700
A43: OFF-Net - междугор | C43: 269.23 | D43: 05050402.01 | E43: 30000407 | F43: =(C46+C47)*1.18 -> 23163.4 | G43: =F43/1.18 -> 19630
A44: DD межгород | D44: 05050501.01 | E44: 30000408 | F44: =(C49+C50)*1.18 -> 159.3 | G44: 135
A45: DD междунар | D45: 05060102.01 | E45: 30000412 | F45: =(C41+C42+C43+C44+C45+C48)*1.18 -> 1428.6024 | G45: 1210.68
A46: Соедин.линия | C46: 7200 | D46: Текущая сумма ДС | F46: 4476825.48 | H46: Итого НДС | J46: =F42-G42+H42-I42+J42-K42+L42-M42+N42-O42+P42-Q42+R42-S42+F43-G43+F44-G44+F45-G45 -> 14291.2224
A47: Точка-точка | C47: 12430 | D47: Новая сумма ДС | F47: =SUM(F46,J47) -> 4570512.382 | H47: Итого | J47: =C58+J46 -> 93686.9024
A48: Надбавка | C48: 941.45 | D48: Номер распоряжения | H48: Корректировка
A49: xDSL доступ | C49: 135
A50: Входящий трафик
A51: VP-LAN ID:1284138 | C51: 12220
A52: VP-LAN ID:1284139 | C52: 7700
A53: VP-LAN ID:1284161 | C53: 7700
A54: VP-LAN ID:1362030 | C54: 7700
A55: VP-LAN ID:1362032 | C55: 7700
A56: VP-LAN ID:1362033 | C56: 7700
A57: VP-LAN ID:1502598 | C57: 7700
A58: Итого без НДС | C58: =SUM(C41:C57) -> 79395.68
A61: Контрагент | B61: Договор | C61: Рамка | D61: ДС
A62: 1000002382 | C62: 10000032588 | D62: 10000033407
A63: Данные по счету | D63: Расчет | E63: Код ТП | F63: Z0056
A64: Услуги связи | C64: 344.42 | D64: Строка | E64: Материал | F64: с НДС | G64: без НДС
A65: НДС | C65: =C64*0.18 -> 61.9956 | D65: 05050501.01 | E65: 30000408 | F65: =C66 -> 406.4156 | G65: =C64 -> 344.42
A66: Всего | C66: =SUM(C64:C65) -> 406.4156 | D66: Текущая сумма ДС | F66: 11948.76
D67: Новая сумма ДС | F67: =F66+C66 -> 12355.1756
D68: Номер распоряжения
A69: 2013-03-01
A71: Контрагент | B71: Договор | C71: Рамка | D71: ДС
A72: 1000002382 | C72: 10000032796 | D72: 10000033267
A74: Данные по счету | D74: Расчет | E74: Код ТП | F74: Z0056 | H74: Z0156 | J74: Z0256 | L74: Z0356 | N74: Z0556 | P74: Z1456 | R74: Z1756
A75: Внутризон на моб | D75: Строка | E75: Материал | F75: с НДС | G75: без НДС | H75: с НДС | I75: без НДС | J75: с НДС | K75: без НДС | L75: с НДС | M75: без НДС | N75: с НДС | O75: без НДС | P75: с НДС | Q75: без НДС | R75: с НДС | S75: без НДС
A76: Внутризон на фикс | D76: 05050401.01 | E76: 30000406 | F76: =C85*1.18 -> 14419.6 | G76: =F76/1.18 -> 12220 | H76: =C86*1.18 -> 9086 | I76: =H76/1.18 -> 7700 | J76: =C88*1.18 -> 9086 | K76: =J76/1.18 -> 7700 | N76: =C89*1.18 -> 9086 | O76: =N76/1.18 -> 7700 | P76: =C90*1.18 -> 9086 | Q76: =P76/1.18 -> 7700 | R76: =C91*1.18 -> 9086 | S76: =R76/1.18 -> 7700
A77: OFF-Net - междугор | C77: 379.25 | D77: 05050402.01 | E77: 30000407 | F77: =(C80+C81)*1.18 -> 23163.4 | G77: =F77/1.18 -> 19630
A78: DD межгород | D78: 05050501.01 | E78: 30000408 | F78: =(C83+C84)*1.18 -> 159.3 | G78: 135
A79: DD междунар | D79: 05060102.01 | E79: 30000412 | F79: =(C75+C76+C77+C78+C79+C82)*1.18 -> 1450.9516 | G79: 1229.62
A80: Соедин.линия | C80: 7200 | D80: Текущая сумма ДС | F80: 4570512.38 | H80: Итого НДС | J80: =F76-G76+H76-I76+J76-K76+L76-M76+N76-O76+P76-Q76+R76-S76+F77-G77+F78-G78+F79-G79+J82 -> 12908.6416
A81: Точка-точка | C81: 12430 | D81: Новая сумма ДС | F81: =SUM(F80,J81) -> 4655135.642 | H81: Итого | J81: =C92+J80 -> 84623.2616
A82: Надбавка | C82: 850.37 | D82: Номер распоряжения | H82: Корректировка | J82: 0.01
A83: xDSL доступ | C83: 135
A84: Входящий трафик
A85: VP-LAN ID:1284138 | C85: 12220
A86: VP-LAN ID:1284139 | C86: 7700
A87: VP-LAN ID:1284161
A88: VP-LAN ID:1362030 | C88: 7700
A89: VP-LAN ID:1362032 | C89: 7700
A90: VP-LAN ID:1362033 | C90: 7700
A91: VP-LAN ID:1502598 | C91: 7700
A92: Итого без НДС | C92: =SUM(C75:C91) -> 71714.62
A95: Контрагент | B95: Договор | C95: Рамка | D95: ДС
A96: 1000002382 | C96: 10000032588 | D96: 10000033407
A97: Данные по счету | D97: Расчет | E97: Код ТП | F97: Z0056
A98: Услуги связи | C98: 353.21 | D98: Строка | E98: Материал | F98: с НДС | G98: без НДС
A99: НДС | C99: =C98*0.18 -> 63.5778 | D99: 05050501.01 | E99: 30000408 | F99: =C100 -> 416.7878 | G99: =C98 -> 353.21
A100: Всего | C100: =SUM(C98:C99) -> 416.7878 | D100: Текущая сумма ДС | F100: 12355.18
D101: Новая сумма ДС | F101: =F100+C100 -> 12771.9678
D102: Номер распоряжения
A103: 2013-04-01
A105: Контрагент | B105: Договор | C105: Рамка | D105: ДС
A106: 1000002382 | C106: 10000032796 | D106: 10000033267
A108: Данные по счету | D108: Расчет | E108: Код ТП | F108: Z0056 | H108: Z0156 | J108: Z0256 | L108: Z0356 | N108: Z0556 | P108: Z1456 | R108: Z1756
A109: Внутризон на моб | D109: Строка | E109: Материал | F109: с НДС | G109: без НДС | H109: с НДС | I109: без НДС | J109: с НДС | K109: без НДС | L109: с НДС | M109: без НДС | N109: с НДС | O109: без НДС | P109: с НДС | Q109: без НДС | R109: с НДС | S109: без НДС
A110: Внутризон на фикс | D110: 05050401.01 | E110: 30000406 | F110: =C119*1.18 -> 14419.6 | G110: =F110/1.18 -> 12220 | H110: =C120*1.18 -> 9086 | I110: =H110/1.18 -> 7700 | J110: =C122*1.18 -> 9086 | K110: =J110/1.18 -> 7700 | N110: =C123*1.18 -> 9086 | O110: =N110/1.18 -> 7700 | P110: =C124*1.18 -> 9086 | Q110: =P110/1.18 -> 7700 | R110: =C125*1.18 -> 9086 | S110: =R110/1.18 -> 7700
A111: OFF-Net - междугор | C111: 197.61 | D111: 05050402.01 | E111: 30000407 | F111: =(C114+C115)*1.18 -> 23163.4 | G111: =F111/1.18 -> 19630
A112: DD межгород | D112: 05050501.01 | E112: 30000408 | F112: =(C117+C118)*1.18 -> 159.3 | G112: 135
A113: DD междунар | D113: 05060102.01 | E113: 30000412 | F113: =(C109+C110+C111+C112+C113+C116)*1.18 -> 1234.044 | G113: 1045.8
A114: Соедин.линия | C114: 7200 | D114: Текущая сумма ДС | H114: Итого НДС | J114: =F110-G110+H110-I110+J110-K110+L110-M110+N110-O110+P110-Q110+R110-S110+F111-G111+F112-G112+F113-G113+J116 -> 12875.544
A115: Точка-точка | C115: 12430 | D115: Новая сумма ДС | F115: =SUM(F114,J115) -> 84406.344 | H115: Итого | J115: =C126+J114 -> 84406.344
A116: Надбавка | C116: 848.19 | D116: Номер распоряжения | H116: Корректировка | J116: 0
A117: xDSL доступ | C117: 135
A118: Входящий трафик
A119: VP-LAN ID:1284138 | C119: 12220
A120: VP-LAN ID:1284139 | C120: 7700
A121: VP-LAN ID:1284161
A122: VP-LAN ID:1362030 | C122: 7700
A123: VP-LAN ID:1362032 | C123: 7700
A124: VP-LAN ID:1362033 | C124: 7700
A125: VP-LAN ID:1502598 | C125: 7700
A126: Итого без НДС | C126: =SUM(C109:C125) -> 71530.8
A129: Контрагент | B129: Договор | C129: Рамка | D129: ДС
A130: 1000002382 | C130: 10000032588 | D130: 10000033407
A131: Данные по счету | D131: Расчет | E131: Код ТП | F131: Z0056
A132: Услуги связи | C132: 365.55 | D132: Строка | E132: Материал | F132: с НДС | G132: без НДС
A133: НДС | C133: =C132*0.18 -> 65.799 | D133: 05050501.01 | E133: 30000408 | F133: =C134 -> 431.349 | G133: =C132 -> 365.55
A134: Всего | C134: =SUM(C132:C133) -> 431.349 | D134: Текущая сумма ДС | F134: 12771.97
D135: Новая сумма ДС | F135: =F134+C134 -> 13203.319
D136: Номер распоряжения
A137: 2013-05-01
A139: Контрагент | B139: Договор | C139: Рамка | D139: ДС
A140: 1000002382 | C140: 10000032796 | D140: 10000033267
A142: Данные по счету | D142: Расчет | E142: Код ТП | F142: Z0056 | H142: Z0156 | J142: Z0256 | L142: Z0356 | N142: Z0556 | P142: Z1456 | R142: Z1756
A143: Внутризон на моб | C143: 1075.5 | D143: Строка | E143: Материал | F143: с НДС | G143: без НДС | H143: с НДС | I143: без НДС | J143: с НДС | K143: без НДС | L143: с НДС | M143: без НДС | N143: с НДС | O143: без НДС | P143: с НДС | Q143: без НДС | R143: с НДС | S143: без НДС
A144: Внутризон на фикс | D144: 05050401.01 | E144: 30000406 | F144: =C153*1.18 -> 14419.6 | G144: =F144/1.18 -> 12220 | H144: =C154*1.18 -> 9086 | I144: =H144/1.18 -> 7700 | J144: =C156*1.18 -> 9086 | K144: =J144/1.18 -> 7700 | N144: =C157*1.18 -> 9086 | O144: =N144/1.18 -> 7700 | P144: =C158*1.18 -> 9086 | Q144: =P144/1.18 -> 7700 | R144: =C159*1.18 -> 9086 | S144: =R144/1.18 -> 7700
A145: OFF-Net - междугор | C145: 228.29 | D145: 05050402.01 | E145: 30000407 | F145: =(C148+C149)*1.18 -> 23163.4 | G145: =F145/1.18 -> 19630
A146: DD межгород | C146: 5827.2 | D146: 05050501.01 | E146: 30000408 | F146: =(C151+C152)*1.18 -> 159.3 | G146: 135
A147: DD междунар | D147: 05060102.01 | E147: 30000412 | F147: =(C143+C144+C145+C146+C147+C150)*1.18 -> 9513.6084 | G147: 8062.38
A148: Соедин.линия | C148: 7200 | D148: Текущая сумма ДС | F148: 4739541.98 | H148: Итого НДС | J148: =F144-G144+H144-I144+J144-K144+L144-M144+N144-O144+P144-Q144+R144-S144+F145-G145+F146-G146+F147-G147+J150 -> 14138.5284
A149: Точка-точка | C149: 12430 | D149: Новая сумма ДС | F149: =SUM(F148,J149) -> 4832227.888 | H149: Итого | J149: =C160+J148 -> 92685.9084
A150: Надбавка | C150: 931.39 | D150: Номер распоряжения | H150: Корректировка | J150: 0
A151: xDSL доступ | C151: 135
A152: Входящий трафик
A153: VP-LAN ID:1284138 | C153: 12220
A154: VP-LAN ID:1284139 | C154: 7700
A155: VP-LAN ID:1284161
A156: VP-LAN ID:1362030 | C156: 7700
A157: VP-LAN ID:1362032 | C157: 7700
A158: VP-LAN ID:1362033 | C158: 7700
A159: VP-LAN ID:1502598 | C159: 7700
A160: Итого без НДС | C160: =SUM(C143:C159) -> 78547.38
A163: Контрагент | B163: Договор | C163: Рамка | D163: ДС
A164: 1000002382 | C164: 10000032588 | D164: 10000033407
A165: Данные по счету | D165: Расчет | E165: Код ТП | F165: Z0056
A166: Услуги связи | C166: 346.56 | D166: Строка | E166: Материал | F166: с НДС | G166: без НДС
A167: НДС | C167: =C166*0.18 -> 62.3808 | D167: 5050501.01 | E167: 30000408 | F167: =C168 -> 408.9408 | G167: =C166 -> 346.56
A168: Всего | C168: =SUM(C166:C167) -> 408.9408 | D168: Текущая сумма ДС | F168: 13203.32
D169: Новая сумма ДС | F169: =F168+C168 -> 13612.2608
D170: Номер распоряжения
A171: 2013-06-01
A173: Контрагент | B173: Договор | C173: Рамка | D173: ДС
A174: 1000002382 | C174: 10000032796 | D174: 10000033267
A176: Данные по счету | D176: Расчет | E176: Код ТП | F176: Z0056 | H176: Z0156 | J176: Z0256 | L176: Z0356 | N176: Z0556 | P176: Z1456 | R176: Z1756
A177: Внутризон на моб | C177: 874.5 | D177: Строка | E177: Материал | F177: с НДС | G177: без НДС | H177: с НДС | I177: без НДС | J177: с НДС | K177: без НДС | L177: с НДС | M177: без НДС | N177: с НДС | O177: без НДС | P177: с НДС | Q177: без НДС | R177: с НДС | S177: без НДС
A178: Внутризон на фикс | D178: 05050401.01 | E178: 30000406 | F178: =C187*1.18 -> 14419.6 | G178: =F178/1.18 -> 12220 | H178: =C188*1.18 -> 9086 | I178: =H178/1.18 -> 7700 | J178: =C190*1.18 -> 9086 | K178: =J178/1.18 -> 7700 | N178: =C191*1.18 -> 9086 | O178: =N178/1.18 -> 7700 | P178: =C192*1.18 -> 9086 | Q178: =P178/1.18 -> 7700 | R178: =C193*1.18 -> 9086 | S178: =R178/1.18 -> 7700
A179: OFF-Net - междугор | C179: 3816.48 | D179: 05050402.01 | E179: 30000407 | F179: =(C182+C183)*1.18 -> 23163.4 | G179: =F179/1.18 -> 19630
A180: DD межгород | C180: 218.42 | D180: 05050501.01 | E180: 30000408 | F180: =(C185+C186)*1.18 -> 159.3 | G180: 135
A181: DD междунар | D181: 05060102.01 | E181: 30000412 | F181: =(C177+C178+C179+C180+C181+C184)*1.18 -> 6860.6734 | G181: 5814.13
A182: Соедин.линия | C182: 7200 | D182: Текущая сумма ДС | F182: 4832227.89 | H182: Итого НДС | J182: =F178-G178+H178-I178+J178-K178+L178-M178+N178-O178+P178-Q178+R178-S178+F179-G179+F180-G180+F181-G181+J184 -> 13733.8434
A183: Точка-точка | C183: 12430 | D183: Новая сумма ДС | F183: =SUM(F182,J183) -> 4922260.863 | H183: Итого | J183: =C194+J182 -> 90032.9734
A184: Надбавка | C184: 904.73 | D184: Номер распоряжения | H184: Корректировка | J184: 0
A185: xDSL доступ | C185: 135
A186: Входящий трафик
A187: VP-LAN ID:1284138 | C187: 12220
A188: VP-LAN ID:1284139 | C188: 7700
A189: VP-LAN ID:1284161
A190: VP-LAN ID:1362030 | C190: 7700
A191: VP-LAN ID:1362032 | C191: 7700
A192: VP-LAN ID:1362033 | C192: 7700
A193: VP-LAN ID:1502598 | C193: 7700
A194: Итого без НДС | C194: =SUM(C177:C193) -> 76299.13
A197: Контрагент | B197: Договор | C197: Рамка | D197: ДС
A198: 1000002382 | C198: 10000032588 | D198: 10000033407
A199: Данные по счету | D199: Расчет | E199: Код ТП | F199: Z0056
A200: Услуги связи | C200: 344.02 | D200: Строка | E200: Материал | F200: с НДС | G200: без НДС
A201: НДС | C201: =C200*0.18 -> 61.9236 | D201: 5050501.01 | E201: 30000408 | F201: =C202 -> 405.9436 | G201: =C200 -> 344.02
A202: Всего | C202: =SUM(C200:C201) -> 405.9436 | D202: Текущая сумма ДС | F202: 13612.26
D203: Новая сумма ДС | F203: =F202+C202 -> 14018.2036
D204: Номер распоряжения
A205: 2013-07-01
A207: Контрагент | B207: Договор | C207: Рамка | D207: ДС
A208: 1000002382 | C208: 10000032796 | D208: 10000033267
A210: Данные по счету | D210: Расчет | E210: Код ТП | F210: Z0056 | H210: Z0156 | J210: Z0256 | L210: Z0356 | N210: Z0556 | P210: Z1456 | R210: Z1756
A211: OFF-Net - междунар | C211: 171.7 | D211: Строка | E211: Материал | F211: с НДС | G211: без НДС | H211: с НДС | I211: без НДС | J211: с НДС | K211: без НДС | L211: с НДС | M211: без НДС | N211: с НДС | O211: без НДС | P211: с НДС | Q211: без НДС | R211: с НДС | S211: без НДС
A212: Внутризон на фикс | D212: 05050401.01 | E212: 30000406 | F212: =C221*1.18 -> 14419.6 | G212: =F212/1.18 -> 12220 | H212: =C222*1.18 -> 9086 | I212: =H212/1.18 -> 7700 | J212: =C224*1.18 -> 9086 | K212: =J212/1.18 -> 7700 | N212: =C225*1.18 -> 9086 | O212: =N212/1.18 -> 7700 | P212: =C226*1.18 -> 9086 | Q212: =P212/1.18 -> 7700 | R212: =C227*1.18 -> 9086 | S212: =R212/1.18 -> 7700
A213: OFF-Net - междугор | C213: 189.15 | D213: 05050402.01 | E213: 30000407 | F213: =(C216+C217)*1.18 -> 23163.4 | G213: =F213/1.18 -> 19630
A214: DD межгород | D214: 05050501.01 | E214: 30000408 | F214: =(C219+C220)*1.18 -> 159.3 | G214: 135
A215: DD междунар | D215: 05060102.01 | E215: 30000412 | F215: =(C211+C212+C213+C214+C215+C218)*1.18 -> 1428.98 | G215: 1211
A216: Соедин.линия | C216: 7200 | D216: Текущая сумма ДС | F216: 4922260.86 | H216: Итого НДС | J216: =F212-G212+H212-I212+J212-K212+L212-M212+N212-O212+P212-Q212+R212-S212+F213-G213+F214-G214+F215-G215+J218 -> 12905.28
A217: Точка-точка | C217: 12430 | D217: Новая сумма ДС | F217: =SUM(F216,J217) -> 5006862.14 | H217: Итого | J217: =C228+J216 -> 84601.28
A218: Надбавка | C218: 850.15 | D218: Номер распоряжения | H218: Корректировка | J218: 0
A219: xDSL доступ | C219: 135
A220: Входящий трафик
A221: VP-LAN ID:1284138 | C221: 12220
A222: VP-LAN ID:1284139 | C222: 7700
A223: VP-LAN ID:1284161
A224: VP-LAN ID:1362030 | C224: 7700
... 4 more rows
